fUSD/lending_fUSD_20260531
["ID","MTS","AMOUNT","RATE_DAILY","PERIOD"]
[423488948,1780159832000,-500.0,0.00013698,2]
[423488973,1780159832000,-500.0,0.00013698,2]
[423488946,1780159832000,-500.0,0.00013698,2]
[423488950,1780159832000,-500.0,0.00013698,2]
[423488918,1780159832000,-500.0,0.00013698,2]
[423488920,1780159832000,-500.0,0.00013698,2]
[423488922,1780159832000,-500.0,0.00013698,2]
[423488928,1780159832000,-500.0,0.00013698,2]
[423488925,1780159832000,-500.0,0.00013698,2]
[423488927,1780159832000,-500.0,0.00013698,2]
[423488923,1780159832000,-500.0,0.00013698,2]
[423488930,1780159832000,-500.0,0.00013698,2]
[423488924,1780159832000,-500.0,0.00013698,2]
[423488926,1780159832000,-500.0,0.00013698,2]
[423488931,1780159832000,-500.0,0.00013698,2]
[423488933,1780159832000,-500.0,0.00013698,2]
[423488921,1780159832000,-500.0,0.00013698,2]
[423488934,1780159832000,-500.0,0.00013698,2]
[423488935,1780159832000,-500.0,0.00013698,2]
[423488945,1780159832000,-500.0,0.00013698,2]
[423488944,1780159832000,-500.0,0.00013698,2]
[423488939,1780159832000,-500.0,0.00013698,2]
[423488940,1780159832000,-500.0,0.00013698,2]
[423488943,1780159832000,-500.0,0.00013698,2]
[423488942,1780159832000,-500.0,0.00013698,2]
[423488936,1780159832000,-500.0,0.00013698,2]
[423488941,1780159832000,-500.0,0.00013698,2]
[423488937,1780159832000,-500.0,0.00013698,2]
[423488947,1780159832000,-500.0,0.00013698,2]
[423488932,1780159832000,-500.0,0.00013698,2]
[423488938,1780159832000,-500.0,0.00013698,2]
[423489014,1780159833000,-500.0,0.00013698,2]
[423489004,1780159833000,-500.0,0.00013698,2]
[423489009,1780159833000,-500.0,0.00013698,2]
[423489012,1780159833000,-161.53446073,0.00013698,2]
[423489013,1780159833000,-500.0,0.00013698,2]
[423489015,1780159833000,-500.0,0.00013698,2]
[423489018,1780159833000,-245.97684644,0.00013698,2]
[423489016,1780159833000,-500.0,0.00013698,2]
[423489011,1780159833000,-500.0,0.00013698,2]
[423489008,1780159833000,-500.0,0.00013698,2]
[423489010,1780159833000,-500.0,0.00013698,2]
[423489028,1780159833000,-607.88,0.00013698,2]
[423489020,1780159833000,-500.0,0.00013698,2]
[423489021,1780159833000,-500.0,0.00013698,2]
[423489019,1780159833000,-500.0,0.00013698,2]
[423489025,1780159833000,-607.88,0.00013698,2]
[423489023,1780159833000,-607.88,0.00013698,2]
[423489027,1780159833000,-607.88,0.00013698,2]
[423489024,1780159833000,-607.88,0.00013698,2]
[423489022,1780159833000,-334.19838374,0.00013698,2]
[423489026,1780159833000,-607.88,0.00013698,2]
[423489007,1780159833000,-500.0,0.00013698,2]
[423489030,1780159833000,-607.88,0.00013698,2]
[423489017,1780159833000,-500.0,0.00013698,2]
[423489006,1780159833000,-500.0,0.00013698,2]
[423488990,1780159833000,-500.0,0.00013698,2]
[423489005,1780159833000,-500.0,0.00013698,2]
[423489040,1780159833000,-500.0,0.00013698,2]
[423488980,1780159833000,-500.0,0.00013698,2]
[423488978,1780159833000,-500.0,0.00013698,2]
[423488979,1780159833000,-500.0,0.00013698,2]
[423488981,1780159833000,-500.0,0.00013698,2]
[423488986,1780159833000,-500.0,0.00013698,2]
[423488985,1780159833000,-500.0,0.00013698,2]
[423488982,1780159833000,-500.0,0.00013698,2]
[423488984,1780159833000,-500.0,0.00013698,2]
[423488983,1780159833000,-500.0,0.00013698,2]
[423488988,1780159833000,-500.0,0.00013698,2]
[423488999,1780159833000,-500.0,0.00013698,2]
[423488987,1780159833000,-500.0,0.00013698,2]
[423488991,1780159833000,-500.0,0.00013698,2]
[423488989,1780159833000,-500.0,0.00013698,2]
[423488993,1780159833000,-500.0,0.00013698,2]
[423488994,1780159833000,-500.0,0.00013698,2]
[423488996,1780159833000,-500.0,0.00013698,2]
[423488995,1780159833000,-500.0,0.00013698,2]
[423488998,1780159833000,-500.0,0.00013698,2]
[423489001,1780159833000,-500.0,0.00013698,2]
[423489000,1780159833000,-500.0,0.00013698,2]
[423489003,1780159833000,-500.0,0.00013698,2]
[423489002,1780159833000,-500.0,0.00013698,2]
[423488992,1780159833000,-500.0,0.00013698,2]
[423489032,1780159833000,-607.88,0.00013698,2]
[423488997,1780159833000,-500.0,0.00013698,2]
[423489033,1780159833000,-607.88,0.00013698,2]
[423489055,1780159833000,-500.0,0.00013698,2]
[423489063,1780159833000,-2410.34,0.00013698,2]
[423489064,1780159833000,-2410.34,0.00013698,2]
[423489070,1780159833000,-500.0,0.00013698,2]
[423489085,1780159833000,-500.0,0.00013698,2]
[423489072,1780159833000,-500.0,0.00013698,2]
[423489065,1780159833000,-2410.34,0.00013698,2]
[423489071,1780159833000,-500.0,0.00013698,2]
[423489067,1780159833000,-2410.34,0.00013698,2]
[423489066,1780159833000,-2410.34,0.00013698,2]
[423489069,1780159833000,-500.0,0.00013698,2]
[423489061,1780159833000,-2410.34,0.00013698,2]
[423489068,1780159833000,-2410.34,0.00013698,2]
[423489077,1780159833000,-500.0,0.00013698,2]
[423489074,1780159833000,-500.0,0.00013698,2]
[423489075,1780159833000,-500.0,0.00013698,2]
[423489084,1780159833000,-500.0,0.00013698,2]
[423489073,1780159833000,-500.0,0.00013698,2]
[423489079,1780159833000,-500.0,0.00013698,2]
[423489083,1780159833000,-500.0,0.00013698,2]
[423489080,1780159833000,-500.0,0.00013698,2]
[423489082,1780159833000,-500.0,0.00013698,2]
[423489081,1780159833000,-295.37631974,0.00013698,2]
[423489029,1780159833000,-607.88,0.00013698,2]
[423489076,1780159833000,-500.0,0.00013698,2]
[423489056,1780159833000,-500.0,0.00013698,2]
[423489078,1780159833000,-500.0,0.00013698,2]
[423489057,1780159833000,-2410.34,0.00013698,2]
[423489062,1780159833000,-2410.34,0.00013698,2]
[423489035,1780159833000,-500.0,0.00013698,2]
[423489034,1780159833000,-607.88,0.00013698,2]
[423489037,1780159833000,-500.0,0.00013698,2]
[423489036,1780159833000,-500.0,0.00013698,2]
[423489039,1780159833000,-500.0,0.00013698,2]
[423489041,1780159833000,-500.0,0.00013698,2]
[423489045,1780159833000,-500.0,0.00013698,2]
[423489043,1780159833000,-500.0,0.00013698,2]
[423489031,1780159833000,-607.88,0.00013698,2]
[423489044,1780159833000,-500.0,0.00013698,2]
[423489050,1780159833000,-500.0,0.00013698,2]
[423489038,1780159833000,-500.0,0.00013698,2]
[423489051,1780159833000,-500.0,0.00013698,2]
[423489052,1780159833000,-500.0,0.00013698,2]
[423489049,1780159833000,-500.0,0.00013698,2]
[423489054,1780159833000,-500.0,0.00013698,2]
[423489059,1780159833000,-2410.34,0.00013698,2]
[423489060,1780159833000,-2410.34,0.00013698,2]
[423489058,1780159833000,-2410.34,0.00013698,2]
[423489053,1780159833000,-500.0,0.00013698,2]
[423489047,1780159833000,-500.0,0.00013698,2]
[423489048,1780159833000,-500.0,0.00013698,2]
[423489042,1780159833000,-500.0,0.00013698,2]
[423489046,1780159833000,-500.0,0.00013698,2]
[423489102,1780159834000,-151.0,0.00013699,2]
[423489107,1780159834000,-151.0,0.00013699,2]
[423489104,1780159834000,-151.0,0.00013699,2]
[423489098,1780159834000,-200.0,0.00013699,2]
[423489108,1780159834000,-151.0,0.00013699,2]
[423489103,1780159834000,-151.0,0.00013699,2]
[423489119,1780159834000,-151.0,0.00013699,2]
[423489110,1780159834000,-151.0,0.00013699,2]
[423489114,1780159834000,-151.0,0.00013699,2]
[423489113,1780159834000,-151.0,0.00013699,2]
[423489112,1780159834000,-151.0,0.00013699,2]
[423489116,1780159834000,-151.0,0.00013699,2]
[423489106,1780159834000,-151.0,0.00013699,2]
[423489111,1780159834000,-151.0,0.00013699,2]
[423489101,1780159834000,-151.0,0.00013699,2]
[423489097,1780159834000,-166.66,0.00013699,2]
[423489099,1780159834000,-727.47,0.00013699,2]
[423489117,1780159834000,-151.0,0.00013699,2]
[423489086,1780159834000,-500.0,0.00013698,2]
[423489088,1780159834000,-500.0,0.00013698,2]
[423489096,1780159834000,-721.0,0.00013699,2]
[423489087,1780159834000,-500.0,0.00013698,2]
[423489094,1780159834000,-500.0,0.00013698,2]
[423489109,1780159834000,-151.0,0.00013699,2]
[423489091,1780159834000,-500.0,0.00013698,2]
[423489092,1780159834000,-500.0,0.00013698,2]
[423489089,1780159834000,-500.0,0.00013698,2]
[423489095,1780159834000,-2500.0,0.00013699,2]
[423489093,1780159834000,-500.0,0.00013698,2]
[423489105,1780159834000,-151.0,0.00013699,2]
[423489100,1780159834000,-151.0,0.00013699,2]
[423489090,1780159834000,-500.0,0.00013698,2]
[423489118,1780159834000,-151.0,0.00013699,2]
[423489115,1780159834000,-151.0,0.00013699,2]
[423489122,1780159834000,-151.0,0.00013699,2]
[423489139,1780159834000,-151.0,0.00013699,2]
[423489133,1780159834000,-151.0,0.00013699,2]
[423489137,1780159834000,-151.0,0.00013699,2]
[423489146,1780159834000,-151.0,0.00013699,2]
[423489147,1780159834000,-151.0,0.00013699,2]
[423489144,1780159834000,-151.0,0.00013699,2]
[423489136,1780159834000,-151.0,0.00013699,2]
[423489151,1780159834000,-151.0,0.00013699,2]
[423489149,1780159834000,-151.0,0.00013699,2]
[423489155,1780159834000,-151.0,0.00013699,2]
[423489150,1780159834000,-151.0,0.00013699,2]
[423489154,1780159834000,-151.0,0.00013699,2]
[423489152,1780159834000,-151.0,0.00013699,2]
[423489120,1780159834000,-151.0,0.00013699,2]
[423489145,1780159834000,-151.0,0.00013699,2]
[423489135,1780159834000,-151.0,0.00013699,2]
[423489148,1780159834000,-151.0,0.00013699,2]
[423489140,1780159834000,-151.0,0.00013699,2]
[423489134,1780159834000,-151.0,0.00013699,2]
[423489125,1780159834000,-151.0,0.00013699,2]
[423489123,1780159834000,-151.0,0.00013699,2]
[423489127,1780159834000,-151.0,0.00013699,2]
[423489128,1780159834000,-151.0,0.00013699,2]
[423489121,1780159834000,-151.0,0.00013699,2]
[423489129,1780159834000,-151.0,0.00013699,2]
[423489124,1780159834000,-151.0,0.00013699,2]
[423489130,1780159834000,-151.0,0.00013699,2]
[423489131,1780159834000,-151.0,0.00013699,2]
[423489132,1780159834000,-151.0,0.00013699,2]
[423489141,1780159834000,-151.0,0.00013699,2]
[423489142,1780159834000,-151.0,0.00013699,2]
[423489143,1780159834000,-151.0,0.00013699,2]
[423489126,1780159834000,-151.0,0.00013699,2]
[423489138,1780159834000,-151.0,0.00013699,2]
[423489246,1780159835000,-236.05959562,0.00018,2]
[423489244,1780159835000,-7945.45839392,0.0001799,2]
[423489243,1780159835000,-150.99,0.00017728,2]
[423489241,1780159835000,-9999.99,0.00017728,2]
[423489242,1780159835000,-9999.99,0.00017728,2]
[423489236,1780159835000,-2579.71048091,0.00016301,2]
[423489235,1780159835000,-3142.0,0.00016192,2]
[423489238,1780159835000,-1611.45,0.00017353,2]
[423489237,1780159835000,-202.5,0.00016438,2]
[423489234,1780159835000,-1600.0,0.0001608,2]
[423489233,1780159835000,-227.13037956,0.00016,2]
[423489239,1780159835000,-2000.0,0.00017505,2]
[423489245,1780159835000,-354.54968176,0.00018,2]
[423489256,1780159835000,-236.05959562,0.000187,2]
[423489248,1780159835000,-354.54968176,0.000182,2]
[423489250,1780159835000,-354.54968176,0.000184,2]
[423489247,1780159835000,-350.0,0.00018,2]
[423489249,1780159835000,-236.05959562,0.000182,2]
[423489252,1780159835000,-202.5,0.0001841,2]
[423489253,1780159835000,-354.54968176,0.000185,2]
[423489251,1780159835000,-236.05959562,0.000184,2]
[423489257,1780159835000,-46857.58197323,0.0001899,2]
[423489254,1780159835000,-236.05959562,0.000185,2]
[423489259,1780159835000,-160.5543707,0.00019151,2]
[423489255,1780159835000,-354.54968176,0.000187,2]
[423489232,1780159835000,-300.0,0.00016,2]
[423489240,1780159835000,-1600.0,0.00017688,2]
[423489230,1780159835000,-2000.0,0.00015914,2]
[423489212,1780159835000,-607.88,0.00014998,2]
[423489231,1780159835000,-215.58360558,0.00015921,2]
[423489258,1780159835000,-2000.0,0.00019097,2]
[423489203,1780159835000,-166.66,0.00013973,2]
[423489205,1780159835000,-166.66,0.0001411,2]
[423489208,1780159835000,-166.66,0.00014384,2]
[423489206,1780159835000,-166.66,0.00014247,2]
[423489204,1780159835000,-250.0,0.00014,2]
[423489207,1780159835000,-2000.0,0.00014322,2]
[423489209,1780159835000,-1600.0,0.00014472,2]
[423489210,1780159835000,-2351.0,0.0001472,2]
[423489214,1780159835000,-500.0,0.00014999,2]
[423489211,1780159835000,-433.0,0.00014799,2]
[423489213,1780159835000,-500.0,0.00014999,2]
[423489228,1780159835000,-500.0,0.00015913,2]
[423489215,1780159835000,-500.0,0.00014999,2]
[423489217,1780159835000,-207.9347959,0.00014999,2]
[423489222,1780159835000,-500.0,0.00014999,2]
[423489221,1780159835000,-500.0,0.00014999,2]
[423489225,1780159835000,-553.36280109,0.00014999,2]
[423489227,1780159835000,-7945.45839392,0.00015245,2]
[423489226,1780159835000,-150.0,0.00015,2]
[423489218,1780159835000,-500.0,0.00014999,2]
[423489220,1780159835000,-500.0,0.00014999,2]
[423489224,1780159835000,-500.0,0.00014999,2]
[423489223,1780159835000,-500.0,0.00014999,2]
[423489219,1780159835000,-500.0,0.00014999,2]
[423489229,1780159835000,-2410.34,0.00015913,2]
[423489216,1780159835000,-500.0,0.00014999,2]
[423489260,1780159835000,-1600.0,0.00019296,2]
[423489287,1780159835000,-151.536,0.00020151,2]
[423489262,1780159835000,-400.0,0.0002,2]
[423489290,1780159835000,-209.52815679,0.000202,2]
[423489291,1780159835000,-151.0,0.00020299,2]
[423489294,1780159835000,-151.0,0.00020299,2]
[423489298,1780159835000,-151.0,0.00020299,2]
[423489300,1780159835000,-151.0,0.00020299,2]
[423489299,1780159835000,-151.0,0.00020299,2]
[423489301,1780159835000,-151.0,0.00020299,2]
[423489307,1780159835000,-151.0,0.00020299,2]
[423489303,1780159835000,-151.0,0.00020299,2]
[423489306,1780159835000,-151.0,0.00020299,2]
[423489302,1780159835000,-151.0,0.00020299,2]
[423489309,1780159835000,-151.0,0.00020299,2]
[423489295,1780159835000,-151.0,0.00020299,2]
[423489304,1780159835000,-151.0,0.00020299,2]
[423489305,1780159835000,-151.0,0.00020299,2]
[423489311,1780159835000,-202.5,0.00020381,2]
[423489310,1780159835000,-151.0,0.00020299,2]
[423489312,1780159835000,-209.52815679,0.000204,2]
[423489314,1780159835000,-151.0,0.00020612,2]
[423489313,1780159835000,-2318.0,0.0002054,2]
[423489315,1780159835000,-151.0,0.00020612,2]
[423489318,1780159835000,-151.0,0.00020612,2]
[423489320,1780159835000,-151.0,0.00020612,2]
[423489319,1780159835000,-151.0,0.00020612,2]
[423489316,1780159835000,-151.0,0.00020612,2]
[423489261,1780159835000,-209.52815679,0.0002,2]
[423489308,1780159835000,-151.0,0.00020299,2]
[423489292,1780159835000,-151.0,0.00020299,2]
[423489296,1780159835000,-151.0,0.00020299,2]
[423489289,1780159835000,-166.75,0.00020178,2]
[423489264,1780159835000,-220.0,0.0002,2]
[423489265,1780159835000,-226.0,0.0002,2]
[423489269,1780159835000,-379.0,0.0002,2]
[423489271,1780159835000,-63.75937168,0.0002,2]
[423489270,1780159835000,-90.24062832,0.0002,2]
[423489263,1780159835000,-8909.54,0.0002,2]
[423489267,1780159835000,-200.0,0.0002,10]
[423489266,1780159835000,-347.0,0.0002,2]
[423489273,1780159835000,-858.0,0.0002,2]
[423489272,1780159835000,-742.0,0.0002,2]
[423489293,1780159835000,-151.0,0.00020299,2]
[423489274,1780159835000,-300.0,0.000201,10]
[423489275,1780159835000,-2579.71048091,0.00020101,2]
[423489283,1780159835000,-150.0,0.00020151,2]
[423489268,1780159835000,-152.0,0.0002,2]
[423489278,1780159835000,-861.93566145,0.00020151,2]
[423489279,1780159835000,-797.925,0.00020151,2]
[423489285,1780159835000,-163.0,0.00020151,2]
[423489276,1780159835000,-3550.0,0.00020151,2]
[423489280,1780159835000,-525.0,0.00020151,2]
[423489277,1780159835000,-494.06433855,0.00020151,2]
[423489281,1780159835000,-1226.0,0.00020151,2]
[423489282,1780159835000,-150.0,0.00020151,2]
[423489317,1780159835000,-151.0,0.00020612,2]
[423489286,1780159835000,-418.0,0.00020151,2]
[423489284,1780159835000,-150.0,0.00020151,2]
[423489297,1780159835000,-151.0,0.00020299,2]
[423489288,1780159835000,-150.0,0.00020151,2]
[423489326,1780159836000,-201.069007,0.00020741,2]
[423489324,1780159836000,-201.069007,0.00020741,2]
[423489323,1780159836000,-3444.48323501,0.00020741,2]
[423489327,1780159836000,-201.069007,0.00020741,2]
[423489333,1780159836000,-151.0,0.00020999,2]
[423489322,1780159836000,-7945.45839392,0.00020735,2]
[423489321,1780159836000,-211.82501588,0.000207,2]
[423489325,1780159836000,-201.069007,0.00020741,2]
[423489329,1780159836000,-517.131074,0.00020999,2]
[423489332,1780159836000,-517.131074,0.00020999,2]
[423489330,1780159836000,-517.131074,0.00020999,2]
[423489331,1780159836000,-517.131074,0.00020999,2]
[423489335,1780159836000,-151.0,0.00020999,2]
[423489334,1780159836000,-231.901232,0.00020999,2]
[423489336,1780159836000,-618.730055,0.00020999,2]
[423489337,1780159836000,-618.730055,0.00020999,2]
[423489339,1780159836000,-582.6699393,0.00020999,2]
[423489328,1780159836000,-151.0,0.00020741,2]
[423489338,1780159836000,-618.730055,0.00020999,2]
[423489384,1780159838000,-500.0,0.0002137,2]
[423489377,1780159838000,-500.0,0.0002137,2]
[423489375,1780159838000,-500.0,0.0002137,2]
[423489373,1780159838000,-500.0,0.0002137,2]
[423489368,1780159838000,-500.0,0.0002137,2]
[423489371,1780159838000,-500.0,0.0002137,2]
[423489376,1780159838000,-500.0,0.0002137,2]
[423489370,1780159838000,-500.0,0.0002137,2]
[423489374,1780159838000,-500.0,0.0002137,2]
[423489379,1780159838000,-500.0,0.0002137,2]
[423489382,1780159838000,-500.0,0.0002137,2]
[423489378,1780159838000,-500.0,0.0002137,2]
[423489380,1780159838000,-500.0,0.0002137,2]
[423489365,1780159838000,-500.0,0.0002137,2]
[423489383,1780159838000,-500.0,0.0002137,2]
[423489386,1780159838000,-500.0,0.0002137,2]
[423489396,1780159838000,-2274.62,0.00021746,2]
[423489397,1780159838000,-5000.0,0.00021918,2]
[423489390,1780159838000,-500.0,0.0002137,2]
[423489385,1780159838000,-500.0,0.0002137,2]
[423489388,1780159838000,-500.0,0.0002137,2]
[423489387,1780159838000,-500.0,0.0002137,2]
[423489381,1780159838000,-500.0,0.0002137,2]
[423489369,1780159838000,-500.0,0.0002137,2]
[423489372,1780159838000,-500.0,0.0002137,2]
[423489366,1780159838000,-500.0,0.0002137,2]
[423489392,1780159838000,-500.0,0.0002137,2]
[423489344,1780159838000,-3638.0,0.00020151,2]
[423489343,1780159838000,-202.5,0.00016437,2]
[423489346,1780159838000,-4752.960664,0.00020999,2]
[423489347,1780159838000,-4752.960664,0.00020999,2]
[423489345,1780159838000,-36.0601157,0.00020999,2]
[423489358,1780159838000,-213.522652,0.00021,2]
[423489349,1780159838000,-4752.960664,0.00020999,2]
[423489359,1780159838000,-213.522652,0.00021,2]
[423489351,1780159838000,-226.0,0.00021,2]
[423489348,1780159838000,-4752.960664,0.00020999,2]
[423489357,1780159838000,-213.522652,0.00021,2]
[423489354,1780159838000,-379.0,0.00021,2]
[423489355,1780159838000,-154.0,0.00021,2]
[423489350,1780159838000,-220.0,0.00021,2]
[423489352,1780159838000,-347.0,0.00021,2]
[423489353,1780159838000,-152.0,0.00021,2]
[423489356,1780159838000,-213.522652,0.00021,2]
[423489360,1780159838000,-742.0,0.00021,2]
[423489361,1780159838000,-10000.0,0.00021285,2]
[423489362,1780159838000,-6477.09,0.0002137,2]
[423489363,1780159838000,-151.0,0.0002137,2]
[423489367,1780159838000,-500.0,0.0002137,2]
[423489364,1780159838000,-500.0,0.0002137,2]
[423489393,1780159838000,-500.0,0.0002137,2]
[423489410,1780159838000,-154.0,0.00022,2]
[423489391,1780159838000,-500.0,0.0002137,2]
[423489424,1780159838000,-1226.0,0.00023151,2]
[423489436,1780159838000,-151.0,0.00023902,2]
[423489435,1780159838000,-2070.66,0.00023889,2]
[423489437,1780159838000,-151.991218,0.00023902,2]
[423489426,1780159838000,-150.0,0.00023151,2]
[423489427,1780159838000,-150.0,0.00023151,2]
[423489433,1780159838000,-607.88,0.00023484,2]
[423489428,1780159838000,-418.0,0.00023151,2]
[423489429,1780159838000,-150.0,0.00023151,2]
[423489432,1780159838000,-7945.45839392,0.0002348,2]
[423489419,1780159838000,-154.0,0.00023,2]
[423489431,1780159838000,-3638.0,0.00023151,2]
[423489439,1780159838000,-151.0,0.00023902,2]
[423489438,1780159838000,-151.0,0.00023902,2]
[423489441,1780159838000,-151.0,0.00023902,2]
[423489440,1780159838000,-151.0,0.00023902,2]
[423489442,1780159838000,-2579.71048091,0.00023902,2]
[423489444,1780159838000,-220.0,0.00024,2]
[423489443,1780159838000,-500.0,0.00024,2]
[423489446,1780159838000,-347.0,0.00024,2]
[423489445,1780159838000,-226.0,0.00024,2]
[423489389,1780159838000,-500.0,0.0002137,2]
[423489434,1780159838000,-3444.48323501,0.00023485,2]
[423489421,1780159838000,-742.0,0.00023,2]
[423489430,1780159838000,-150.0,0.00023151,2]
[423489420,1780159838000,-1047.61960593,0.00023,2]
[423489395,1780159838000,-298.342053,0.0002137,2]
[423489418,1780159838000,-379.0,0.00023,2]
[423489394,1780159838000,-500.0,0.0002137,2]
[423489409,1780159838000,-379.0,0.00022,2]
[423489399,1780159838000,-800.0,0.00021918,2]
[423489398,1780159838000,-151.0,0.00021918,2]
[423489401,1780159838000,-800.0,0.00021918,2]
[423489400,1780159838000,-800.0,0.00021918,2]
[423489405,1780159838000,-450.0,0.00022,2]
[423489407,1780159838000,-226.0,0.00022,2]
[423489406,1780159838000,-220.0,0.00022,2]
[423489402,1780159838000,-800.0,0.00021918,2]
[423489404,1780159838000,-806.15912236,0.00021918,2]
[423489416,1780159838000,-226.0,0.00023,2]
[423489403,1780159838000,-800.0,0.00021918,2]
[423489417,1780159838000,-347.0,0.00023,2]
[423489415,1780159838000,-220.0,0.00023,2]
[423489423,1780159838000,-1356.0,0.00023151,2]
[423489413,1780159838000,-284.70653836,0.00022159,2]
[423489411,1780159838000,-742.0,0.00022,2]
[423489422,1780159838000,-3550.0,0.00023151,2]
[423489412,1780159838000,-163.0,0.00022046,2]
[423489408,1780159838000,-347.0,0.00022,2]
[423489414,1780159838000,-202.5,0.00022353,2]
[423489486,1780159839000,-1500.0,0.00027397,2]
[423489484,1780159839000,-200.0,0.00027023,2]
[423489489,1780159839000,-300.0,0.00027397,2]
[423489488,1780159839000,-647.75,0.00027397,20]
[423489485,1780159839000,-712.0,0.00027301,4]
[423489479,1780159839000,-712.0,0.00026192,3]
[423489506,1780159839000,-312.9,0.0002758,7]
[423489481,1780159839000,-3444.48323501,0.00026228,2]
[423489491,1780159839000,-30810.9,0.00027397,10]
[423489483,1780159839000,-712.0,0.00026746,3]
[423489493,1780159839000,-174.11,0.000274,7]
[423489482,1780159839000,-202.5,0.00026296,2]
[423489487,1780159839000,-213.32,0.00027397,2]
[423489496,1780159839000,-150.0,0.00027521,2]
[423489507,1780159839000,-312.23,0.00027611,30]
[423489495,1780159839000,-1679.55,0.000274,14]
[423489497,1780159839000,-615.62,0.0002755,30]
[423489502,1780159839000,-613.43,0.0002755,30]
[423489503,1780159839000,-661.73,0.0002755,30]
[423489499,1780159839000,-661.4,0.0002755,30]
[423489504,1780159839000,-530.72,0.0002755,30]
[423489505,1780159839000,-312.23,0.0002758,7]
[423489494,1780159839000,-172.27,0.000274,7]
[423489501,1780159839000,-312.9,0.0002755,2]
[423489500,1780159839000,-530.89,0.0002755,30]
[423489518,1780159839000,-2579.71048091,0.00027703,2]
[423489508,1780159839000,-312.9,0.00027611,30]
[423489511,1780159839000,-2410.34,0.00027671,2]
[423489490,1780159839000,-21278.83,0.00027397,10]
[423489498,1780159839000,-312.23,0.0002755,2]
[423489492,1780159839000,-25675.75,0.00027397,10]
[423489463,1780159839000,-755.0,0.00025,2]
[423489475,1780159839000,-150.0,0.00026151,2]
[423489449,1780159839000,-742.0,0.00024,2]
[423489450,1780159839000,-202.5,0.00024324,2]
[423489451,1780159839000,-213.32,0.00024658,2]
[423489448,1780159839000,-154.0,0.00024,2]
[423489447,1780159839000,-379.0,0.00024,2]
[423489453,1780159839000,-151.0,0.00024658,2]
[423489464,1780159839000,-204.64,0.00025,2]
[423489452,1780159839000,-151.0,0.00024658,2]
[423489455,1780159839000,-1000.0,0.00024658,2]
[423489459,1780159839000,-242.0,0.00025,2]
[423489454,1780159839000,-273.79528,0.00024658,2]
[423489457,1780159839000,-500.0,0.0002474,2]
[423489456,1780159839000,-151.0,0.00024658,2]
[423489460,1780159839000,-351.0,0.00025,2]
[423489480,1780159839000,-7945.45839392,0.00026224,2]
[423489462,1780159839000,-160.8477614,0.00025,2]
[423489458,1780159839000,-220.0,0.00025,2]
[423489466,1780159839000,-221.97879626,0.00025316,2]
[423489467,1780159839000,-200.0,0.00025331,2]